fUST/lending_fUST_20250607
["ID","MTS","AMOUNT","RATE_DAILY","PERIOD"]
[364909083,1749294637626,-440.0,0.00020062,2]
[364909084,1749294637636,-440.0,0.00020062,2]
[364909085,1749294637646,-440.0,0.00020062,2]
[364909086,1749294637656,-440.0,0.00020062,2]
[364909087,1749294637666,-440.0,0.00020062,2]
[364909088,1749294637676,-440.0,0.00020062,2]
[364909089,1749294637685,-440.0,0.00020062,2]
[364909090,1749294637695,-440.0,0.00020062,2]
[364909091,1749294637704,-430.0,0.00020062,2]
[364909092,1749294637715,-440.0,0.00020062,2]
[364909093,1749294637725,-440.0,0.00020062,2]
[364909094,1749294637735,-440.0,0.00020062,2]
[364909095,1749294637746,-440.0,0.00020062,2]
[364909096,1749294637756,-440.0,0.00020062,2]
[364909097,1749294637767,-440.0,0.00020062,2]
[364909098,1749294637776,-440.0,0.00020062,2]
[364909099,1749294637787,-440.0,0.00020062,2]
[364909100,1749294637797,-429.4963616,0.00020062,2]
[364909101,1749294637807,-732.6,0.00020062,2]
[364909102,1749294637818,-440.0,0.00020062,2]
[364909103,1749294637830,-440.0,0.00020062,2]
[364909104,1749294637840,-440.0,0.00020062,2]
[364909105,1749294637850,-440.0,0.00020062,2]
[364909106,1749294637860,-580.7,0.00020062,2]
[364909107,1749294637869,-440.0,0.00020062,2]
[364909108,1749294637880,-430.0,0.00020062,2]
[364909109,1749294637891,-440.0,0.00020062,2]
[364909110,1749294637900,-440.0,0.00020062,2]
[364909111,1749294637911,-440.0,0.00020062,2]
[364909112,1749294637920,-386.73429613,0.00020062,2]
[364909113,1749294637929,-454.60413483,0.00020062,2]
[364909114,1749294637942,-200.90035427,0.00020062,2]
[364909115,1749294637951,-351.26527999,0.00020062,2]
[364909116,1749294637961,-380.0,0.00020062,2]
[364909117,1749294637971,-440.0,0.00020062,2]
[364909118,1749294637982,-572.19446849,0.00020062,2]
[364909119,1749294637992,-440.0,0.00020062,2]
[364909120,1749294638001,-440.0,0.00020062,2]
[364909121,1749294638013,-577.74330759,0.00020062,2]
[364909122,1749294638024,-257.53953565,0.00020063,2]
[364909123,1749294638034,-410.0,0.00020063,2]
[364909124,1749294638044,-151.0,0.00020063,2]
[364909125,1749294638053,-244.563,0.00020179,2]
[364909126,1749294638063,-177.92407056,0.00020179,2]
[364909127,1749294638072,-423.90693687,0.00020225,2]
[364909128,1749294638082,-160.0,0.00020228,2]
[364909129,1749294638091,-160.0,0.00020229,2]
[364909130,1749294638101,-160.0,0.00020229,2]
[364909131,1749294638111,-11851.94353573,0.00020229,2]
[364909132,1749294638120,-615.078262,0.00020229,2]
[364909133,1749294638130,-615.078262,0.00020229,2]
[364909134,1749294638140,-151.0,0.00020229,2]
[364909135,1749294638149,-151.0,0.00020229,2]
[364909136,1749294638159,-500.0,0.00020235,2]
[364909137,1749294638170,-300.5652654,0.00020235,2]
[364909138,1749294638181,-500.0,0.00020241,2]
[364909139,1749294638194,-500.0,0.00020241,2]
[364909140,1749294638203,-500.0,0.00020241,2]
[364909141,1749294638216,-732.6,0.00020244,2]
[364909142,1749294638227,-165.66668676,0.00020249,2]
[364909143,1749294638237,-506.45617297,0.00020249,2]
[364909144,1749294638247,-500.0,0.00020249,2]
[364909145,1749294638257,-625.62677359,0.00020249,2]
[364909146,1749294638266,-500.0,0.00020249,2]
[364909147,1749294638276,-500.0,0.00020249,2]
[364909148,1749294638286,-501.11294187,0.00020281,2]
[364909149,1749294638295,-500.0,0.00020281,2]
[364909150,1749294638305,-1002.66042553,0.00020321,2]
[364909151,1749294638315,-694.84667099,0.00020321,2]
[364909152,1749294638324,-440.0,0.00020332,2]
[364909153,1749294638334,-440.0,0.00020332,2]
[364909154,1749294638344,-951.05,0.00020332,2]
[364909155,1749294638354,-440.0,0.00020332,2]
[364909156,1749294638364,-1463.92,0.00020332,2]
[364909157,1749294638374,-440.0,0.00020332,2]
[364909159,1749294638383,-942.82,0.00020332,2]
[364909160,1749294638393,-440.0,0.00020332,2]
[364909161,1749294638402,-1420.34,0.00020332,2]
[364909162,1749294638411,-440.0,0.00020332,2]
[364909163,1749294638421,-440.0,0.00020332,2]
[364909165,1749294638430,-440.0,0.00020332,2]
[364909166,1749294638440,-983.93,0.00020332,2]
[364909167,1749294638449,-1289.59,0.00020332,2]
[364909168,1749294638458,-440.0,0.00020332,2]
[364909169,1749294638469,-553.04,0.00020332,2]
[364909170,1749294638479,-440.0,0.00020332,2]
[364909171,1749294638490,-440.0,0.00020334,2]
[364909172,1749294638500,-440.0,0.00020334,2]
[364909173,1749294638510,-440.0,0.00020334,2]
[364909174,1749294638521,-440.0,0.00020334,2]
[364909175,1749294638530,-440.0,0.00020334,2]
[364909176,1749294638540,-440.0,0.00020334,2]
[364909177,1749294638550,-440.0,0.00020334,2]
[364909178,1749294638560,-408.13232613,0.00020334,2]
[364909179,1749294638570,-440.0,0.00020334,2]
[364909180,1749294638580,-1686.44,0.00020334,2]
[364909181,1749294638590,-440.0,0.00020334,2]
[364909182,1749294638599,-440.0,0.00020334,2]
[364909183,1749294638609,-440.0,0.00020334,2]
[364909184,1749294638618,-440.0,0.00020334,2]
[364909185,1749294638628,-440.0,0.00020334,2]
[364909186,1749294638638,-626.62,0.00020334,2]
[364909187,1749294638647,-440.0,0.00020334,2]
[364909188,1749294638657,-440.0,0.00020334,2]
[364909189,1749294638667,-440.0,0.00020334,2]
[364909190,1749294638677,-470.89,0.00020334,2]
[364909191,1749294638687,-1096.21,0.00020334,2]
[364909192,1749294638696,-440.0,0.00020334,2]
[364909193,1749294638706,-440.0,0.00020334,2]
[364909194,1749294638715,-440.0,0.00020334,2]
[364909195,1749294638725,-634.09,0.00020334,2]
[364909196,1749294638735,-440.0,0.00020334,2]
[364909197,1749294638744,-440.0,0.00020334,2]
[364909198,1749294638754,-440.0,0.00020334,2]
[364909199,1749294638763,-440.0,0.00020335,2]
[364909200,1749294638773,-440.0,0.00020335,2]
[364909201,1749294638785,-440.0,0.00020335,2]
[364909202,1749294638794,-440.0,0.00020335,2]
[364909203,1749294638804,-440.0,0.00020335,2]
[364909204,1749294638813,-440.0,0.00020335,2]
[364909205,1749294638823,-190.52098603,0.00020335,2]
[364909206,1749294638833,-232.601867,0.00020335,2]
[364909207,1749294638842,-152.118527,0.00020335,2]
[364909208,1749294638852,-440.0,0.00020335,2]
[364909209,1749294638862,-440.0,0.00020335,2]
[364909210,1749294638872,-440.0,0.00020335,2]
[364909211,1749294638882,-453.57,0.00020335,2]
[364909212,1749294638892,-440.0,0.00020335,2]
[364909213,1749294638901,-440.0,0.00020335,2]
[364909214,1749294638910,-629.25,0.00020335,2]
[364909215,1749294638919,-320.88184397,0.00020335,2]
[364909216,1749294638929,-670.29,0.00020335,2]
[364909218,1749294638943,-565.4213844,0.00020335,2]
[364909220,1749294638952,-440.0,0.00020335,2]
[364909222,1749294638963,-400.0,0.00020335,2]
[364909224,1749294638973,-440.0,0.00020335,2]
[364909226,1749294638984,-440.0,0.00020335,2]
[364909228,1749294638993,-440.0,0.00020336,2]
[364909229,1749294639003,-440.0,0.00020336,2]
[364909230,1749294639014,-440.0,0.00020336,2]
[364909231,1749294639023,-440.0,0.00020336,2]
[364909232,1749294639033,-440.0,0.00020336,2]
[364909233,1749294639043,-440.0,0.00020336,2]
[364909234,1749294639053,-337.71069959,0.00020336,2]
[364909235,1749294639062,-440.0,0.00020336,2]
[364909236,1749294639072,-377.67945617,0.00020336,2]
[364909237,1749294639083,-440.0,0.00020336,2]
[364909238,1749294639093,-440.0,0.00020336,2]
[364909239,1749294639102,-440.0,0.00020336,2]
[364909240,1749294639111,-440.0,0.00020336,2]
[364909241,1749294639121,-440.0,0.00020336,2]
[364909242,1749294639130,-440.0,0.00020336,2]
[364909243,1749294639140,-440.0,0.00020336,2]
[364909244,1749294639150,-440.0,0.00020336,2]
[364909245,1749294639160,-440.0,0.00020336,2]
[364909246,1749294639169,-440.0,0.00020336,2]
[364909247,1749294639179,-440.0,0.00020336,2]
[364909248,1749294639189,-440.0,0.00020336,2]
[364909249,1749294639198,-440.0,0.00020336,2]
[364909250,1749294639208,-440.0,0.00020336,2]
[364909251,1749294639218,-440.0,0.00020336,2]
[364909252,1749294639227,-732.6,0.00020336,2]
[364909253,1749294639238,-440.0,0.00020336,2]
[364909254,1749294639248,-454.85705169,0.00020336,2]
[364909255,1749294639258,-407.55,0.00020336,2]
[364909256,1749294639267,-440.0,0.00020336,2]
[364909257,1749294639277,-440.0,0.00020336,2]
[364909258,1749294639286,-440.0,0.00020336,2]
[364909259,1749294639296,-440.0,0.00020336,2]
[364909260,1749294639306,-440.0,0.00020336,2]
[364909261,1749294639315,-440.0,0.00020336,2]
[364909262,1749294639324,-440.0,0.00020336,2]
[364909263,1749294639334,-482.0793356,0.00020336,2]
[364909264,1749294639344,-161.27367462,0.00020377,2]
[364909265,1749294639354,-500.0,0.0002038,2]
[364909266,1749294639364,-500.0,0.0002038,2]
[364909267,1749294639373,-500.0,0.0002038,2]
[364909268,1749294639383,-282.0,0.00020385,2]
[364909269,1749294639392,-420.0,0.00020465,2]
[364909270,1749294639402,-500.0,0.00020492,2]
[364909271,1749294639411,-300.0,0.00020517,2]
[364909272,1749294639421,-326.0,0.00020563,2]
[364909273,1749294639430,-500.0,0.00020577,2]
[364909274,1749294639440,-500.0,0.00020577,2]
[364909275,1749294639450,-151.0,0.00020577,2]
[364909276,1749294639459,-919.71,0.000206,2]
[364909277,1749294639469,-440.0,0.00020606,2]
[364909278,1749294639479,-440.0,0.00020606,2]
[364909279,1749294639488,-951.05,0.00020606,2]
[364909280,1749294639498,-440.0,0.00020606,2]
[364909281,1749294639508,-1463.92,0.00020606,2]
[364909282,1749294639517,-440.0,0.00020606,2]
[364909283,1749294639527,-942.82,0.00020606,2]
[364909284,1749294639536,-440.0,0.00020606,2]
[364909285,1749294639546,-1420.34,0.00020606,2]
[364909286,1749294639556,-440.0,0.00020606,2]
[364909287,1749294639566,-440.0,0.00020606,2]
[364909288,1749294639575,-440.0,0.00020606,2]
[364909289,1749294639585,-983.93,0.00020606,2]
[364909290,1749294639595,-1289.59,0.00020606,2]
[364909291,1749294639604,-440.0,0.00020606,2]
[364909292,1749294639614,-553.04,0.00020606,2]
[364909293,1749294639623,-440.0,0.00020606,2]
[364909294,1749294639633,-440.0,0.00020608,2]
[364909295,1749294639643,-440.0,0.00020608,2]
[364909296,1749294639654,-440.0,0.00020608,2]
[364909297,1749294639663,-440.0,0.00020608,2]
[364909298,1749294639673,-440.0,0.00020608,2]
[364909299,1749294639682,-732.6,0.00020608,2]
[364909300,1749294639692,-440.0,0.00020608,2]
[364909301,1749294639702,-440.0,0.00020608,2]
[364909302,1749294639712,-440.0,0.00020608,2]
[364909303,1749294639722,-1686.44,0.00020608,2]
[364909304,1749294639731,-440.0,0.00020608,2]
[364909305,1749294639741,-440.0,0.00020608,2]
[364909306,1749294639750,-440.0,0.00020608,2]
[364909307,1749294639760,-440.0,0.00020608,2]
[364909309,1749294639770,-323.82735018,0.00020608,2]
[364909310,1749294639779,-626.62,0.00020608,2]
[364909311,1749294639789,-440.0,0.00020608,2]
[364909312,1749294639798,-440.0,0.00020608,2]
[364909313,1749294639808,-440.0,0.00020608,2]
[364909314,1749294639817,-470.89,0.00020608,2]
[364909315,1749294639826,-1096.21,0.00020608,2]
[364909316,1749294639835,-440.0,0.00020608,2]
[364909317,1749294639845,-440.0,0.00020608,2]
[364909318,1749294639854,-440.0,0.00020608,2]
[364909319,1749294639863,-634.09,0.00020608,2]
[364909320,1749294639873,-440.0,0.00020608,2]
[364909321,1749294639882,-440.0,0.00020608,2]
[364909322,1749294639893,-440.0,0.00020608,2]
[364909323,1749294639902,-440.0,0.00020609,2]
[364909324,1749294639911,-440.0,0.00020609,2]
[364909325,1749294639920,-440.0,0.00020609,2]
[364909326,1749294639930,-440.0,0.00020609,2]
[364909327,1749294639943,-440.0,0.00020609,2]
[364909328,1749294639952,-440.0,0.00020609,2]
[364909329,1749294639962,-615.078262,0.00020609,2]
[364909330,1749294639971,-615.078262,0.00020609,2]
[364909331,1749294639982,-440.0,0.00020609,2]
[364909333,1749294639992,-440.0,0.00020609,2]
[364909334,1749294640001,-440.0,0.00020609,2]
[364909336,1749294640013,-453.57,0.00020609,2]
[364909338,1749294640023,-192.12721483,0.00020609,2]
[364909339,1749294640032,-380.0,0.00020609,2]
[364909341,1749294640042,-629.25,0.00020609,2]
[364909342,1749294640051,-670.29,0.00020609,2]
[364909344,1749294640060,-440.0,0.00020609,2]
[364909345,1749294640204,-151.0,0.00020609,2]
[364909346,1749294640214,-168.696472,0.00020609,2]
[364909347,1749294640224,-350.0,0.00020609,2]
[364909348,1749294640233,-431.66981993,0.00020609,2]
[364909349,1749294640244,-440.0,0.0002061,2]
[364909350,1749294640253,-440.0,0.0002061,2]
[364909351,1749294640263,-440.0,0.0002061,2]
[364909352,1749294640273,-440.0,0.0002061,2]
[364909353,1749294640283,-266.54034557,0.0002061,2]
[364909354,1749294640293,-297.29,0.0002061,2]
[364909355,1749294640302,-380.0,0.0002061,2]
[364909356,1749294640312,-513.05378082,0.0002061,2]
[364909357,1749294640321,-440.0,0.0002061,2]
[364909358,1749294640331,-370.0,0.0002061,2]
[364909359,1749294640341,-440.0,0.0002061,2]
[364909360,1749294640351,-440.0,0.0002061,2]
[364909361,1749294640360,-440.0,0.0002061,2]
[364909362,1749294640370,-440.0,0.0002061,2]
[364909363,1749294640379,-377.60808724,0.0002061,2]
[364909364,1749294640389,-413.10685768,0.0002061,2]
[364909365,1749294640398,-440.0,0.0002061,2]
[364909366,1749294640407,-440.0,0.0002061,2]
[364909367,1749294640418,-440.0,0.0002061,2]
[364909368,1749294640427,-440.0,0.0002061,2]
[364909369,1749294640438,-440.0,0.0002061,2]
[364909370,1749294640447,-192.84,0.0002061,2]
[364909371,1749294640457,-440.0,0.0002061,2]
[364909372,1749294640467,-261.54265223,0.0002061,2]
[364909373,1749294640477,-440.0,0.0002061,2]
[364909374,1749294640487,-440.0,0.0002061,2]
[364909375,1749294640496,-440.0,0.0002061,2]
[364909376,1749294640506,-504.72230835,0.0002061,2]
[364909377,1749294640516,-440.0,0.0002061,2]
[364909378,1749294640525,-732.6,0.00020651,2]
[364909379,1749294640535,-481.56516768,0.00020656,2]
[364909380,1749294640545,-500.0,0.00020656,2]
[364909381,1749294640554,-4645.9548662,0.00020696,2]
[364909382,1749294640564,-1711.81,0.000207,2]
[364909383,1749294640574,-500.0,0.00020737,2]
[364909384,1749294640584,-500.0,0.00020737,2]
[364909385,1749294640593,-732.6,0.00020762,2]
[364909386,1749294640603,-732.6,0.00020762,2]
[364909387,1749294640612,-440.0,0.00020763,2]
[364909388,1749294640622,-440.0,0.00020763,2]
[364909389,1749294640632,-440.0,0.00020763,2]
[364909390,1749294640641,-350.0,0.00020763,2]
[364909391,1749294640651,-440.0,0.00020763,2]
[364909392,1749294640661,-430.0,0.00020763,2]
[364909393,1749294640670,-403.46058369,0.00020763,2]
[364909394,1749294640679,-440.0,0.00020763,2]
[364909395,1749294640690,-430.0,0.00020763,2]
[364909396,1749294640699,-440.0,0.00020763,2]
[364909397,1749294640709,-430.0,0.00020763,2]
[364909398,1749294640718,-440.0,0.00020763,2]
[364909399,1749294640727,-440.0,0.00020763,2]
[364909400,1749294640736,-440.0,0.00020763,2]
[364909401,1749294640747,-440.0,0.00020763,2]
[364909402,1749294640756,-391.21854392,0.00020763,2]
[364909403,1749294640766,-440.0,0.00020763,2]
[364909404,1749294640775,-440.0,0.00020763,2]
[364909405,1749294640785,-517.8481705,0.00020763,2]
[364909406,1749294640795,-440.0,0.00020763,2]
[364909407,1749294640805,-360.77478625,0.00020763,2]
[364909408,1749294640815,-430.0,0.00020763,2]
[364909409,1749294640825,-430.0,0.00020763,2]
[364909410,1749294640835,-440.0,0.00020763,2]
[364909411,1749294640844,-440.0,0.00020763,2]
[364909412,1749294640854,-440.0,0.00020763,2]
[364909413,1749294640863,-440.0,0.00020763,2]
[364909414,1749294640873,-430.0,0.00020763,2]
[364909415,1749294640882,-440.0,0.00020763,2]
[364909416,1749294640892,-430.0,0.00020763,2]
[364909417,1749294640901,-430.0,0.00020763,2]
[364909418,1749294640911,-480.40700973,0.00020763,2]
[364909419,1749294640921,-440.0,0.00020763,2]
[364909420,1749294640932,-388.08608637,0.00020763,2]
[364909421,1749294640944,-440.0,0.00020763,2]
[364909422,1749294640955,-188.83160997,0.00020763,2]
[364909423,1749294640965,-440.0,0.00020763,2]
[364909424,1749294640974,-440.0,0.00020763,2]
[364909425,1749294640985,-430.0,0.00020763,2]
[364909426,1749294640994,-440.0,0.00020763,2]
[364909427,1749294641004,-440.0,0.00020763,2]
[364909428,1749294641015,-420.0,0.00020763,2]
[364909429,1749294641025,-430.0,0.00020763,2]
[364909430,1749294641035,-440.0,0.00020763,2]
[364909431,1749294641044,-430.0,0.00020763,2]
[364909432,1749294641054,-430.37016652,0.00020763,2]
[364909433,1749294641063,-430.0,0.00020763,2]
[364909434,1749294641073,-440.0,0.00020763,2]
[364909435,1749294641083,-440.0,0.00020763,2]
[364909436,1749294641092,-440.0,0.00020763,2]
[364909437,1749294641103,-151.0,0.00020763,2]
[364909438,1749294641113,-151.0,0.00020763,2]
[364909439,1749294641122,-615.078262,0.00020763,2]
[364909440,1749294641133,-615.078262,0.00020763,2]
[364909441,1749294641143,-151.0,0.00020763,2]
[364909442,1749294641153,-151.0,0.00020763,2]
[364909443,1749294641162,-834.52263295,0.0002077,2]
[364909444,1749294641172,-159.70787944,0.00020772,2]
[364909445,1749294641181,-700.0,0.00020773,2]
[364909446,1749294641191,-1000.0,0.00020783,2]
[364909447,1749294641200,-1012.86735027,0.00020789,2]
[364909448,1749294641210,-288.63107863,0.00020789,2]
[364909449,1749294641219,-1004.90978063,0.00020789,2]
[364909450,1749294641229,-418.0,0.00020789,2]
[364909451,1749294641238,-516.50162892,0.00020797,2]
[364909452,1749294641248,-1000.0,0.00020797,2]
[364909453,1749294641258,-870.6675651,0.000208,3]
[364909454,1749294641267,-502.67348192,0.00020829,2]
[364909455,1749294641276,-207.4,0.00020875,2]
[364909456,1749294641286,-500.0,0.00020875,2]
[364909457,1749294641295,-500.0,0.00020875,2]
[364909458,1749294641305,-1688.0,0.00020875,2]
[364909459,1749294641314,-500.0,0.00020875,2]
[364909460,1749294641323,-500.0,0.00020875,2]
[364909461,1749294641332,-500.0,0.00020875,2]
[364909462,1749294641342,-500.0,0.00020875,2]
[364909463,1749294641352,-619.45991527,0.00020875,2]
[364909464,1749294641361,-500.0,0.00020875,2]
[364909465,1749294641370,-500.0,0.00020875,2]
[364909466,1749294641380,-500.0,0.00020875,2]
[364909467,1749294641390,-3784.4197749,0.00020875,2]
[364909468,1749294641399,-500.0,0.00020875,2]
[364909469,1749294641408,-500.0,0.00020875,2]
[364909470,1749294641418,-500.0,0.00020875,2]
[364909471,1749294641428,-500.0,0.00020875,2]
[364909472,1749294641439,-500.0,0.00020875,2]
[364909473,1749294641450,-500.0,0.00020875,2]
[364909474,1749294641461,-500.0,0.00020875,2]
[364909475,1749294641472,-500.0,0.00020875,2]
[364909476,1749294641481,-305.49247512,0.00020875,2]
[364909477,1749294641492,-500.0,0.00020875,2]
[364909478,1749294641502,-500.0,0.00020875,2]
[364909479,1749294641512,-500.0,0.00020875,2]
[364909480,1749294641521,-500.0,0.00020875,2]
[364909481,1749294641532,-500.0,0.00020875,2]
[364909482,1749294641542,-500.0,0.00020875,2]
[364909483,1749294641551,-500.0,0.00020875,2]
[364909484,1749294641561,-500.0,0.00020875,2]
[364909485,1749294641569,-500.0,0.00020875,2]
[364909486,1749294641579,-500.0,0.00020875,2]
[364909487,1749294641588,-500.0,0.00020875,2]
[364909488,1749294641597,-440.0,0.0002088,2]
[364909489,1749294641606,-440.0,0.0002088,2]
[364909490,1749294641616,-951.05,0.0002088,2]
[364909491,1749294641627,-440.0,0.0002088,2]
[364909492,1749294641636,-1463.92,0.0002088,2]
[364909493,1749294641645,-440.0,0.0002088,2]
[364909494,1749294641655,-942.82,0.0002088,2]
[364909495,1749294641666,-440.0,0.0002088,2]
[364909496,1749294641675,-1420.34,0.0002088,2]
[364909497,1749294641685,-440.0,0.0002088,2]
[364909498,1749294641694,-440.0,0.0002088,2]
[364909499,1749294641704,-440.0,0.0002088,2]
[364909500,1749294641713,-983.93,0.0002088,2]
[364909501,1749294641723,-1289.59,0.0002088,2]
[364909502,1749294641733,-440.0,0.0002088,2]
[364909503,1749294641742,-553.04,0.0002088,2]
[364909504,1749294641752,-440.0,0.0002088,2]
[364909505,1749294641762,-440.0,0.00020882,2]
[364909506,1749294641771,-440.0,0.00020882,2]
[364909507,1749294641782,-440.0,0.00020882,2]
[364909508,1749294641794,-440.0,0.00020882,2]
[364909509,1749294641805,-440.0,0.00020882,2]
[364909510,1749294641815,-440.0,0.00020882,2]
[364909511,1749294641825,-440.0,0.00020882,2]
[364909512,1749294641835,-440.0,0.00020882,2]
[364909513,1749294641844,-1686.44,0.00020882,2]
[364909514,1749294641854,-440.0,0.00020882,2]
[364909515,1749294641864,-440.0,0.00020882,2]
[364909516,1749294641875,-440.0,0.00020882,2]
[364909517,1749294641885,-440.0,0.00020882,2]
[364909518,1749294641895,-626.62,0.00020882,2]
[364909519,1749294641905,-440.0,0.00020882,2]
[364909520,1749294641914,-440.0,0.00020882,2]
[364909521,1749294641924,-440.0,0.00020882,2]
[364909522,1749294641935,-470.89,0.00020882,2]
[364909523,1749294641946,-1096.21,0.00020882,2]
[364909524,1749294641956,-440.0,0.00020882,2]
[364909525,1749294641966,-432.44963458,0.00020882,2]
[364909526,1749294641975,-440.0,0.00020882,2]
[364909527,1749294641987,-634.09,0.00020882,2]
[364909528,1749294641997,-440.0,0.00020882,2]
[364909529,1749294642007,-440.0,0.00020882,2]
[364909530,1749294642017,-440.0,0.00020882,2]
[364909531,1749294642027,-440.0,0.00020883,2]
[364909532,1749294642037,-440.0,0.00020883,2]
[364909533,1749294642047,-440.0,0.00020883,2]
[364909534,1749294642056,-440.0,0.00020883,2]
[364909535,1749294642067,-440.0,0.00020883,2]
[364909536,1749294642077,-440.0,0.00020883,2]
[364909537,1749294642087,-440.0,0.00020883,2]
[364909538,1749294642097,-440.0,0.00020883,2]
[364909539,1749294642106,-453.57,0.00020883,2]
[364909540,1749294642116,-629.25,0.00020883,2]
[364909541,1749294642125,-670.29,0.00020883,2]
[364909542,1749294642134,-440.0,0.00020883,2]
[364909543,1749294642144,-440.0,0.00020884,2]
[364909544,1749294642154,-409.89430423,0.00020884,2]
[364909545,1749294642164,-440.0,0.00020884,2]
[364909546,1749294642174,-440.0,0.00020884,2]
[364909547,1749294642184,-440.0,0.00020884,2]
[364909548,1749294642194,-615.078262,0.00020884,2]
[364909549,1749294642203,-440.0,0.00020884,2]
[364909550,1749294642213,-615.078262,0.00020884,2]
[364909551,1749294642222,-440.0,0.00020884,2]
[364909552,1749294642232,-440.0,0.00020884,2]
[364909553,1749294642243,-440.0,0.00020884,2]
[364909554,1749294642254,-440.0,0.00020884,2]
[364909555,1749294642264,-377.58124026,0.00020884,2]
[364909556,1749294642274,-440.0,0.00020884,2]
[364909557,1749294642283,-732.6,0.00020884,2]
[364909558,1749294642293,-440.0,0.00020884,2]
[364909559,1749294642302,-151.0,0.00020884,2]
[364909560,1749294642312,-440.0,0.00020884,2]
[364909561,1749294642323,-440.0,0.00020884,2]
[364909562,1749294642333,-440.0,0.00020884,2]
[364909563,1749294642342,-440.0,0.00020884,2]
[364909564,1749294642352,-1185.08684642,0.000209,4]
[364909565,1749294642362,-1000.0,0.00020928,2]
[364909566,1749294642371,-1000.0,0.00020928,2]
[364909567,1749294642381,-1000.0,0.00020928,2]
[364909568,1749294642391,-1750.456,0.0002093,2]
[364909569,1749294642402,-920.61653262,0.00020985,2]
[364909570,1749294642412,-2349.3,0.00020986,2]
[364909571,1749294642422,-151.0,0.00021,2]
[364909572,1749294642432,-732.6,0.00021035,2]
[364909573,1749294642443,-732.6,0.00021035,2]
[364909574,1749294642453,-347.58188,0.00021036,2]
[364909575,1749294642463,-151.0,0.00021036,2]
[364909576,1749294642474,-347.58188,0.00021036,2]
[364909577,1749294642484,-151.0,0.00021036,2]
[364909578,1749294642494,-151.0,0.00021036,2]
[364909579,1749294642503,-501.12658918,0.00021037,2]
[364909580,1749294642513,-440.0,0.00021037,2]
[364909581,1749294642524,-440.0,0.00021037,2]
[364909582,1749294642533,-420.0,0.00021037,2]
[364909583,1749294642542,-440.0,0.00021037,2]
[364909584,1749294642552,-440.0,0.00021037,2]
[364909585,1749294642561,-440.0,0.00021037,2]
[364909586,1749294642671,-420.0,0.00021037,2]
[364909587,1749294642681,-440.0,0.00021037,2]
[364909588,1749294642691,-420.0,0.00021037,2]
[364909589,1749294642700,-440.0,0.00021037,2]
[364909590,1749294642709,-440.0,0.00021037,2]
[364909591,1749294642718,-440.0,0.00021037,2]
[364909592,1749294642728,-440.0,0.00021037,2]
[364909593,1749294642738,-420.0,0.00021037,2]
[364909594,1749294642748,-430.0,0.00021037,2]
[364909595,1749294642756,-378.56434652,0.00021037,2]
[364909596,1749294642767,-402.56741331,0.00021037,2]